{"text_format":"3","workbook":"xlsx","n_sheets":1,"sheets":["Sheet1"],"not_rendered":{"defined_names":1},"read":"whole","date_system":"1900"}

{"sheet":"Sheet1","index":0,"n_rows":94,"n_cols":23,"rows_kept":94,"merged":[[0,0,0,22],[1,0,2,0],[1,1,2,2],[1,3,1,20],[1,21,2,21],[1,22,2,22],[7,1,17,1],[7,22,17,22],[19,1,40,1],[19,22,40,22],[42,1,56,1],[42,22,56,22],[58,1,66,1],[58,22,66,22],[68,1,70,1],[68,22,70,22],[72,1,74,1],[72,22,74,22],[78,1,84,1],[78,22,84,22],[86,1,91,1],[86,22,91,22]]}
["2022年南京市建邺区教育局所属学校公开招聘教师岗位信息表1"]
["序号","招聘单位",null,"招聘岗位（学科/专业）与人数",{"$nulls":17},"合计","备注"]
[{"$nulls":4},"语文","数学","英语","政治","历史","地理","生物","物理","化学","音乐","体育","美术","信息技术","科学","特殊教育","学前教育","环境设计"]
[null,"职业学校","南京市莫愁中等专业学校",{"$nulls":4},1,1,{"$nulls":11},1]
[null,null,"小计",{"$nulls":4},1,1,{"$nulls":11},1,3]
[null,"高中","南京市建邺高级中学",{"$nulls":11},1]
[null,null,"小计",{"$nulls":11},1,{"$nulls":6},{"$f":"SUM(E7:S7)","v":1}]
[null,"初中","南京市建邺初级中学",null,1,1,1,{"$nulls":6},1,{"$nulls":8},"合并招聘岗位，\n报名不到具体单位"]
[null,null,"南京市南湖第二中学",{"$nulls":3},1,null,1,null,1]
[null,null,"南京市中华中学上新河初级中学",null,1,null,null,1,{"$nulls":3},1]
[null,null,"南京外国语学校河西初级中学",{"$nulls":4},1,{"$nulls":3},1,1]
[null,null,"南师大附中新城初级中学黄山路分校",null,1,null,null,1,1,{"$nulls":5},1]
[null,null,"南师大附中新城初级中学",null,2,3,1,2,{"$nulls":3},1,1,1,1,1]
[null,null,"南师大附中新城初级中学怡康街分校",null,1,{"$nulls":3},1,null,1,null,null,1]
[null,null,"南京市致远初级中学",{"$nulls":4},1,{"$nulls":5},1,1,1,1]
[null,null,"生态科技岛绿水街学校（初中部）",null,1,1,1,1,1,1,1,null,null,1,1,1]
[null,null,"南京市陶行知学校（初中部）",null,1,1,1,1,1,null,null,2,null,null,1]
[null,null,"南师大附中邺城路初级中学",null,1,1,1,1,1,1,null,1,null,1,2,1]
[null,null,"小计",null,{"$f":"SUM(E8:E18)","v":9},7,6,9,6,2,3,6,2,6,7,4,1,{"$nulls":4},{"$f":"SUM(E19:U19)","v":68}]
[null,"小学\n（1）","南京市南湖第一小学",null,1,null,1,{"$nulls":6},1,{"$nulls":8},"合并招聘岗位，\n报名不到具体单位"]
[null,null,"南京市南湖第二小学",null,1,{"$nulls":12},1]
[null,null,"南京市南湖第三小学",null,1,1,1,{"$nulls":7},1]
[null,null,"南京外国语学校河西初级中学第一附属小学",{"$nulls":12},2,2,1]
[null,null,"南京外国语学校河西初级中学第二附属小学",null,null,1,{"$nulls":10},1]
[null,null,"南京晓庄学院第一实验小学",{"$nulls":3},1]
[null,null,"南京致远外国语小学分校"]
[null,null,"南京市建邺实验小学分校",{"$nulls":13},1,1]
[null,null,"南京市莫愁湖小学",{"$nulls":11},2,1,1]
[null,null,"南京市中华中学附属小学",{"$nulls":14},1]
[null,null,"生态科技岛绿水街学校（小学部）",{"$nulls":10},1,null,1]
[null,null,"南师大附中新城小学",null,1,1,{"$nulls":7},1,1,1,null,1]
[null,null,"南京致远外国语小学乐山路分校",null,null,1,1,{"$nulls":8},1]
[null,null,"南京市华山路小学",null,2,{"$nulls":8},1]
[null,null,"南京市陶行知学校（小学部）",{"$nulls":10},1]
[null,null,"南京市金陵中学实验小学",{"$nulls":10},1]
[null,null,"南京市清润小学",null,null,1,{"$nulls":11},1]
[null,null,"南京市莲花实验学校（小学部）",{"$nulls":12},1]
[null,null,"南师大附中新城小学南校区",null,4,1,2,{"$nulls":6},1,3,1]
[null,null,"南师大附中新城小学怡康街分校",{"$nulls":12},1]
[null,null,"南师大附中江山小学",null,null,2,1,{"$nulls":7},1,1,1]
[null,null,"南师大附中邺城路小学",null,null,2,1,{"$nulls":9},1]
[null,null,"小计",null,{"$f":"SUM(E20:E41)","v":10},{"$f":"SUM(F20:F41)","v":10},{"$f":"SUM(G20:G41)","v":8},{"$nulls":6},{"$f":"SUM(N20:N41)","v":7},{"$f":"SUM(O20:O41)","v":8},{"$f":"SUM(P20:P41)","v":10},{"$f":"SUM(Q20:Q41)","v":7},{"$f":"SUM(R20:R41)","v":6},{"$nulls":3},{"$f":"SUM(E42:U42)","v":66}]
[null,"小学\n（2）","南京外国语学校河西初级中学第一附属小学",null,7,2,1,{"$nulls":7},2,{"$nulls":7},"合并招聘岗位，\n报名不到具体单位"]
[null,null,"南京市南湖第一小学",null,null,1]
[null,null,"生态科技岛绿水街学校（小学部）",null,null,1]
[null,null,"南京市生态科技岛小学",null,null,1,{"$nulls":8},1]
[null,null,"南师大附中新城小学",{"$nulls":3},1]
[null,null,"南京市陶行知学校（小学部）",null,null,1,1,{"$nulls":7},1]
[null,null,"南京致远外国语小学分校",null,1]
[null,null,"南京市莫愁湖小学",null,null,1]
[null,null,"南师大附中新城小学怡康街分校",null,1,1,1]
[null,null,"南师大附中新城小学北校区",null,1,1,{"$nulls":8},2]
[null,null,"南京市建邺实验小学分校",null,null,1,1]
[null,null,"南京市莲花实验学校（小学部）",{"$nulls":3},1]
[null,null,"南师大附中黄山路小学",{"$nulls":11},1]
[null,null,"南京市清润小学",{"$nulls":3},1]
[null,null,"南京市金陵中学实验小学",{"$nulls":3},1]
[null,null,"小计",null,{"$f":"SUM(E43:E57)","v":10},{"$f":"SUM(F43:F57)","v":10},{"$f":"SUM(G43:G57)","v":8},{"$nulls":7},{"$f":"SUM(O43:O57)","v":7},{"$nulls":6},{"$f":"SUM(E58:U58)","v":35}]
[null,"小学\n（3）","南京市金陵中学实验小学",null,4,{"$nulls":9},2,{"$nulls":7},"合并招聘岗位，\n报名不到具体单位"]
[null,null,"南京市中华中学附属小学",null,1]
[null,null,"南京市莫愁湖小学",null,1]
[null,null,"南京外国语学校河西初级中学第二附属小学",{"$nulls":11},1]
[null,null,"南京市清润小学",null,4,{"$nulls":9},1]
[null,null,"南京致远外国语小学乐山路分校",{"$nulls":11},1]
[null,null,"南师大附中邺城路小学",{"$nulls":11},1]
[null,null,"生态科技岛绿水街学校（小学部）",{"$nulls":11},1]
[null,null,"南师大附中新城小学怡康街分校",{"$nulls":11},1]
[null,null,"小计",null,{"$f":"SUM(E59:E67)","v":10},{"$nulls":9},{"$f":"SUM(O59:O67)","v":8},{"$nulls":6},{"$f":"SUM(E68:U68)","v":18}]
[null,"小学\n（4）","南师大附中江山小学",null,5,{"$nulls":17},"合并招聘岗位，\n报名不到具体单位"]
[null,null,"南京市陶行知学校（小学部）",null,2]
[null,null,"生态科技岛绿水街学校（小学部）",null,3]
[null,null,"小计",null,{"$f":"SUM(E69:E71)","v":10},{"$nulls":16},{"$f":"SUM(E72:U72)","v":10}]
[null,"小学\n（5）","南京外国语学校河西初级中学第二附属小学",null,3,{"$nulls":17},"合并招聘岗位，\n报名不到具体单位"]
[null,null,"南京致远外国语小学乐山路分校",null,3]
[null,null,"南师大附中邺城路小学",null,4]
[null,null,"小计",null,{"$f":"SUM(E73:E75)","v":10},{"$nulls":16},{"$f":"SUM(E76:U76)","v":10}]
[null,"特殊教育","南京特殊教育师范学院附属学校",{"$nulls":11},1,{"$nulls":3},1]
[null,null,"小计",{"$nulls":11},1,{"$nulls":3},1,null,null,2]
[null,"幼儿园（1）","南京市建邺区实验幼儿园",{"$nulls":16},2,null,null,"合并招聘岗位，\n报名不到具体单位"]
[null,null,"南京市香山路幼儿园",{"$nulls":16},2]
[null,null,"世纪星幼儿园",{"$nulls":16},2]
[null,null,"南京市爱达幼儿园",{"$nulls":16},1]
[null,null,"南京市建邺区致远幼儿园",{"$nulls":16},1]
[null,null,"南京市建邺区崇文幼儿园",{"$nulls":16},1]
[null,null,"南京市建邺区泰山路幼儿园",{"$nulls":16},1]
[null,null,"小计",{"$nulls":18},10]
[null,"幼儿园（2）","南京市第五幼儿园",{"$nulls":16},2,null,null,"合并招聘岗位，\n报名不到具体单位"]
[null,null,"南京市鹤琴幼儿园",{"$nulls":16},2]
[null,null,"南京市奥体艺术幼儿园",{"$nulls":16},3]
[null,null,"南京市莲花北苑幼儿园",{"$nulls":16},1]
[null,null,"江苏省第二师范学院附属红星街幼儿园",{"$nulls":16},1]
[null,null,"南京市凤栖路幼儿园",{"$nulls":16},1]
[null,null,"小计",{"$nulls":18},10]
[null,null,"合计",{"$nulls":18},{"$f":"SUM(V5:V93)","v":233}]